Body Name,Body,Service Level,Expense Type,Expense Code,Narrative,Date,Transaction Number,Amount,Capital and Revenue,Supplier Name,Supplier ID
South Ribble Borough Council,http://statistics.data.gov.uk/id/local-authority/30UE,Capital,Cap Contract Payment,C230,Leyland Town Deal- Flood Risk AssessmentRequester - NAME REDACTED,19/04/2023,0000487759,"1,190.00",Revenue,Aegaea Ltd,0
South Ribble Borough Council,http://statistics.data.gov.uk/id/local-authority/30UE,Capital,Cap Contract Payment,C230,Leyland Town Deal- Flood Risk Assessment Requester - NAME REDACTED,19/04/2023,0000487767,"1,280.00",Revenue,Aegaea Ltd,0
South Ribble Borough Council,http://statistics.data.gov.uk/id/local-authority/30UE,Capital,Cap Contract Payment,C230,Leyland Town Deal- Flood Risk Assessment Requester - NAME REDACTED,19/04/2023,0000487768,"1,190.00",Revenue,Aegaea Ltd,0
South Ribble Borough Council,http://statistics.data.gov.uk/id/local-authority/30UE,Central Support Services,Quality Assurance (BS5750),4548,"Annual Registration and surveillance visit , 900 + VAT",12/04/2023,0000487676,900.00,Revenue,ALCUMUS ISOQAR LTD,0
South Ribble Borough Council,http://statistics.data.gov.uk/id/local-authority/30UE,Capital,Cap Contract Payment,C230,"South Ribble Tennis Centre Decarbonisation Works:, Sub-Total : 409,412.27, + VAT 81,882.45, Total: 491,294.72",21/04/2023,0000487994,"153,874.28",Revenue,Alliance Leisure Services Limited,0
South Ribble Borough Council,http://statistics.data.gov.uk/id/local-authority/30UE,Capital,Cap Contract Payment,C230,"for DNO Connections and M&E Works in line with the Decarbonisation Scheme, across the leisure centres and civic centre please., ,",21/04/2023,0000487995,"482,645.93",Revenue,Alliance Leisure Services Limited,0
South Ribble Borough Council,http://statistics.data.gov.uk/id/local-authority/30UE,Capital,Cap Contract Payment,C230,"final M&E Works in line with the Decarbonisation Scheme, across the leisure centre and civic centre , The Civic Centre Decarbonis",21/04/2023,0000487996,"283,643.30",Revenue,Alliance Leisure Services Limited,0
South Ribble Borough Council,http://statistics.data.gov.uk/id/local-authority/30UE,Capital,Cap Contract Payment,C230,"for DNO Connections and M&E Works in line with the Decarbonisation Scheme, across the leisure centres and civic centre please., ,",21/04/2023,0000487997,"215,271.04",Revenue,Alliance Leisure Services Limited,0
South Ribble Borough Council,http://statistics.data.gov.uk/id/local-authority/30UE,Capital,Cap Contract Payment,C230,"Penwortham Leisure Centre Decarbonisation Works:, Sub-Total : 2,179,797.00, + VAT 435,959.40, Total: 2,615,756.40",21/04/2023,0000487998,"363,640.82",Revenue,Alliance Leisure Services Limited,0
South Ribble Borough Council,http://statistics.data.gov.uk/id/local-authority/30UE,Central Support Services,Software Licensing,4243,Claim Control Subscription 6151.23,12/04/2023,0000487685,"6,151.23",Revenue,Alphatec Software Limited,0
South Ribble Borough Council,http://statistics.data.gov.uk/id/local-authority/30UE,Central Support Services,Agency Staff,1121,Agency Staff w/e 09/04/2023,21/04/2023,0000488024,"7,261.88",Revenue,ALS Managed Services Ltd,0
South Ribble Borough Council,http://statistics.data.gov.uk/id/local-authority/30UE,Community Development,Core Fund,4861,x2 beehive planters and delivery as per quotation 0000018808,19/04/2023,0000487587,849.00,Revenue,Amberol Ltd,0
South Ribble Borough Council,http://statistics.data.gov.uk/id/local-authority/30UE,Community Development,Core Fund,4861,x2 beehive planters and delivery as per quotation 0000018808,19/04/2023,0000487605,849.00,Revenue,Amberol Ltd,0
South Ribble Borough Council,http://statistics.data.gov.uk/id/local-authority/30UE,Central Support Services,Property Insurance,2811,"SRBC Property Damage - End of year declaration 1st Jan 22 to 31st Dec 22, 3113.14 plus IPT at 373.58, Total - 3486.72",12/04/2023,0000487702,"3,486.72",Revenue,Arthur J. Gallagher,0
South Ribble Borough Council,http://statistics.data.gov.uk/id/local-authority/30UE,Central Support Services,Motor Fleet Policy,3611,"SRBC Fleet Rated Commercial Motor - 1st Jan 22 to 31st Dec 22, 14959.68, IPT 1795.16, Total 16754.84",12/04/2023,0000487703,"16,754.84",Revenue,Arthur J. Gallagher,0
South Ribble Borough Council,http://statistics.data.gov.uk/id/local-authority/30UE,Democratic Represent and  Mgnt,External Catering Charges,4575,"Catering for event for 70 people, Wednesday 29th April 2023 (Evening), as per email confirmation from NAME REDACTED on 27/03/23",26/04/2023,0000488118,980.00,Revenue,Artisan Deli Limited,0
South Ribble Borough Council,http://statistics.data.gov.uk/id/local-authority/30UE,Housing Advice,Contributions to Other Bodies,4730,AFFORDABLE WARMTH SCHEME FOR INSULATION AT ADDRESS REDACTED AS PER QUOTE SUPPLIED OF 2401.00 ( NO VAT),19/04/2023,0000487746,"2,401.00",Revenue,Bartons of Duke Street Ltd,0
South Ribble Borough Council,http://statistics.data.gov.uk/id/local-authority/30UE,Housing Advice,Contributions to Other Bodies,4730,FFORDABLE WARMTH SCHEME FOR INSULATION AT ADDRESS REDACTED AS PER QUOTE SUPPLIED OF 917 ( NO VAT),26/04/2023,0000488166,917.00,Revenue,Bartons of Duke Street Ltd,0
South Ribble Borough Council,http://statistics.data.gov.uk/id/local-authority/30UE,Community Development,Professional Fees,4510,Easter HAF camps 3rd April  6th April 60 spaces per day @ 14 per head,19/04/2023,0000487774,"3,360.00",Revenue,Box Clever CIC,0
South Ribble Borough Council,http://statistics.data.gov.uk/id/local-authority/30UE,Capital,Capital Grant,C570,DFG WORK TO COMPLETE BEDROOM/BATHROOM ADAPTATION AT ADDRESS REDACTED AS PER QUOTE SUPPLIED 37514.00. CUST CONTRIBUTION,19/04/2023,0000488006,"5,000.00",Revenue,Bright Construction North West Ltd,0
South Ribble Borough Council,http://statistics.data.gov.uk/id/local-authority/30UE,Central Support Services,Agency Staff,1121,Revenues Hours purchased 2023-2024,19/04/2023,0000487722,"5,772.00",Revenue,Business Smart Solutions,0
South Ribble Borough Council,http://statistics.data.gov.uk/id/local-authority/30UE,Corporate Management,External Audit Fees,4512,NFI Exercises for 2022 & 2023 standard fee District Council rate for SRBC,05/04/2023,0000487445,"2,535.00",Revenue,Cabinet Office,0
South Ribble Borough Council,http://statistics.data.gov.uk/id/local-authority/30UE,Regulatory Services,Operational Equip & Tools,4010,New perm licence - 5180 +VAT - per NAME REDACTED,26/04/2023,0000487226,"5,180.00",Revenue,CAMBRIDGE ENVIRONMENTAL RESEARCHCONSULTANTS LTD,0
South Ribble Borough Council,http://statistics.data.gov.uk/id/local-authority/30UE,Capital,Cap Contract Payment,C230,"Provision of Civil & Structural Engineering Services (Stages 1-2) Extra Care Facility, West Paddock, Leyland",26/04/2023,0000484531,"7,100.00",Revenue,Campbell Reith Hill LLP,0
South Ribble Borough Council,http://statistics.data.gov.uk/id/local-authority/30UE,Capital,Cap Contract Payment,C230,"Provision of Civil & Structural Engineering Services (Stages 1-2) Extra Care Facility, West Paddock, Leyland",26/04/2023,0000484564,"3,500.00",Revenue,Campbell Reith Hill LLP,0
South Ribble Borough Council,http://statistics.data.gov.uk/id/local-authority/30UE,Capital,Cap Contract Payment,C230,Fees to cover additional Stage 4 Highways Design Work,26/04/2023,0000485152,"4,500.00",Revenue,Campbell Reith Hill LLP,0
South Ribble Borough Council,http://statistics.data.gov.uk/id/local-authority/30UE,Capital,Cap Contract Payment,C230,cancelled by cred 12169,26/04/2023,0000487879,"10,125.00",Revenue,Campbell Reith Hill LLP,0
South Ribble Borough Council,http://statistics.data.gov.uk/id/local-authority/30UE,Capital,Cap Contract Payment,C230,cancelled by cred 12168,26/04/2023,0000487880,"10,125.00",Revenue,Campbell Reith Hill LLP,0
South Ribble Borough Council,http://statistics.data.gov.uk/id/local-authority/30UE,Capital,Cap Contract Payment,C230,cancelled by credit 12268,26/04/2023,0000487881,"2,666.67",Revenue,Campbell Reith Hill LLP,0
South Ribble Borough Council,http://statistics.data.gov.uk/id/local-authority/30UE,Capital,Cap Contract Payment,C230,cancel by cred 12267,26/04/2023,0000487882,"1,333.33",Revenue,Campbell Reith Hill LLP,0
South Ribble Borough Council,http://statistics.data.gov.uk/id/local-authority/30UE,Central Support Services,Software Licensing,4243,SRBC -Council Tax Support Fund (CTSF) 2023 (2023-012),26/04/2023,0000488121,805.00,Revenue,CAPITA BUSINESS SERVICES LTD,0
South Ribble Borough Council,http://statistics.data.gov.uk/id/local-authority/30UE,Central Support Services,Software Licensing,4243,Business Rates Software Changes � England TR-SSB 2023,26/04/2023,0000488275,"1,575.00",Revenue,CAPITA BUSINESS SERVICES LTD,0
South Ribble Borough Council,http://statistics.data.gov.uk/id/local-authority/30UE,Central Support Services,Agency Staff,1121,Consultant planning officer NAME REDACTED,05/04/2023,0000485765,"4,002.00",Revenue,CAPITA PROPERTY AND INFRASTRUCTURE LTD,0
South Ribble Borough Council,http://statistics.data.gov.uk/id/local-authority/30UE,Central Support Services,Agency Staff,1121,Consultant planning officer NAME REDACTED,05/04/2023,0000487399,"2,852.00",Revenue,CAPITA PROPERTY AND INFRASTRUCTURE LTD,0
South Ribble Borough Council,http://statistics.data.gov.uk/id/local-authority/30UE,Community Development,Core Fund,4861,To provide funds for improvements to the community space at Carr Manor Nursery to be then able to open it up for the community (i,19/04/2023,0000487660,"1,500.00",Revenue,Carr Manor Nursery,0
South Ribble Borough Council,http://statistics.data.gov.uk/id/local-authority/30UE,Central Support Services,Agency Staff,1121,"Provision of a temporary Auditor, ",19/04/2023,0000487751,764.61,Revenue,Castlefield Recruitment Limited,0
South Ribble Borough Council,http://statistics.data.gov.uk/id/local-authority/30UE,Central Support Services,Agency Staff,1121,"Provision of a temporary Auditor, ",19/04/2023,0000487900,726.00,Revenue,Castlefield Recruitment Limited,0
South Ribble Borough Council,http://statistics.data.gov.uk/id/local-authority/30UE,Central Support Services,Agency Staff,1121,"Provision of a temporary Auditor, ",19/04/2023,0000487916,739.86,Revenue,Castlefield Recruitment Limited,0
South Ribble Borough Council,http://statistics.data.gov.uk/id/local-authority/30UE,Central Support Services,Agency Staff,1121,"Provision of a temporary Auditor, ",19/04/2023,0000487918,736.89,Revenue,Castlefield Recruitment Limited,0
South Ribble Borough Council,http://statistics.data.gov.uk/id/local-authority/30UE,Central Support Services,Short Course,1402,First Aid training on 28/03/2023 for12 x Neighbourhood Operatives,19/04/2023,0000487591,595.00,Revenue,Centaur Training Services (North West) Ltd,0
South Ribble Borough Council,http://statistics.data.gov.uk/id/local-authority/30UE,Homelessness,Temporary Accommodation,5311,"South Ribble Borough Council owes Chorley Borough Council 3,500 for half the costs of consultation with NAME REDACTED on the Allocat",12/04/2023,0000487519,"2,916.67",Revenue,CHORLEY BOROUGH COUNCIL,0
South Ribble Borough Council,http://statistics.data.gov.uk/id/local-authority/30UE,Homelessness,Temporary Accommodation,5311,"South Ribble Borough Council needs to pay Chorley Borough Council 13,145 because we owe our contribution (one third) towards the",12/04/2023,0000487526,"10,954.17",Revenue,CHORLEY BOROUGH COUNCIL,0
South Ribble Borough Council,http://statistics.data.gov.uk/id/local-authority/30UE,Central Support Services,Software Licensing,4243,"ICT invoices paid by Chorley Council that relate to both South Ribble and Chorley. , Amount 	Invoice 	Supplier	Narrative, 14,925.",19/04/2023,0000487600,"14,925.15",Revenue,CHORLEY BOROUGH COUNCIL,0
South Ribble Borough Council,http://statistics.data.gov.uk/id/local-authority/30UE,Central Support Services,Network and Security,4247,"ICT invoices paid by Chorley Council that relate to both South Ribble and Chorley. , Amount 	Invoice 	Supplier	Narrative, 14,925.",19/04/2023,0000487600,"98,945.15",Revenue,CHORLEY BOROUGH COUNCIL,0
South Ribble Borough Council,http://statistics.data.gov.uk/id/local-authority/30UE,Central Support Services,Applications Systems,4248,"ICT invoices paid by Chorley Council that relate to both South Ribble and Chorley. , Amount 	Invoice 	Supplier	Narrative, 14,925.",19/04/2023,0000487600,"3,981.25",Revenue,CHORLEY BOROUGH COUNCIL,0
South Ribble Borough Council,http://statistics.data.gov.uk/id/local-authority/30UE,Central Support Services,Telecomms - Mobile,4260,"ICT invoices paid by Chorley Council that relate to both South Ribble and Chorley. , Amount 	Invoice 	Supplier	Narrative, 14,925.",19/04/2023,0000487600,"39,562.75",Revenue,CHORLEY BOROUGH COUNCIL,0
South Ribble Borough Council,http://statistics.data.gov.uk/id/local-authority/30UE,Central Support Services,Miscellaneous Expenses,4851,"ICT invoices paid by Chorley Council that relate to both South Ribble and Chorley. , Amount 	Invoice 	Supplier	Narrative, 14,925.",19/04/2023,0000487600,"33,841.24",Revenue,CHORLEY BOROUGH COUNCIL,0
South Ribble Borough Council,http://statistics.data.gov.uk/id/local-authority/30UE,Homelessness,Temporary Accommodation,5311,SRBC Purchase Order so that Chorley Council can invoice us for accommodation at Cotswold House: ADDRESS REDACTED,19/04/2023,0000487920,"2,317.80",Revenue,CHORLEY BOROUGH COUNCIL,0
South Ribble Borough Council,http://statistics.data.gov.uk/id/local-authority/30UE,Central Support Services,Intruder Alarm,2035,"Annual Contract 2023/2024 number 1584236	Intruder Alarm	Moss Side Depot	ADDRESS REDACTED 	and monitoring, CCTV 2023/2",26/04/2023,0000488088,577.80,Revenue,CHUBB LTD,0
South Ribble Borough Council,http://statistics.data.gov.uk/id/local-authority/30UE,Central Support Services,Intruder Alarm,2035,Annual Contract 2023/2024 number 1360109 Intruder Alarm ADDRESS REDACTED,26/04/2023,0000488091,"2,308.96",Revenue,CHUBB LTD,0
South Ribble Borough Council,http://statistics.data.gov.uk/id/local-authority/30UE,Surplus or Deficit on Trading,Intruder Alarm,2035,Annual Contract 2023/2024 number 1076775 Intruder Alarm ADDRESS REDACTED and monitoring,26/04/2023,0000488092,898.82,Revenue,CHUBB LTD,0
South Ribble Borough Council,http://statistics.data.gov.uk/id/local-authority/30UE,Central Support Services,Intruder Alarm,2035,"Annual Contract 2023/2024 number 1584236	Intruder Alarm	ADDRESS REDACTED",26/04/2023,0000488095,"1,872.50",Revenue,CHUBB LTD,0
South Ribble Borough Council,http://statistics.data.gov.uk/id/local-authority/30UE,Central Support Services,Intruder Alarm,2035,Annual Contract 2023/2024 number 1543140 CCTV ADDRESS REDACTED,26/04/2023,0000488097,"3,128.71",Revenue,CHUBB LTD,0
South Ribble Borough Council,http://statistics.data.gov.uk/id/local-authority/30UE,Homelessness,Temporary Accommodation,5311,"1,484.00 to the Claremont Hotel in Preston for accommodation costs at the hotel between 03.04.23 and 09.04.23. There are/were fo",19/04/2023,0000487780,"1,484.00",Revenue,CLAREMONT HOTEL,0
South Ribble Borough Council,http://statistics.data.gov.uk/id/local-authority/30UE,Homelessness,Temporary Accommodation,5311,"Purchase order created to pay The Claremont Hotel in Preston (516 Blackpool Rd, Ashton-on-Ribble, Preston PR2 1HY) for homelessne",21/04/2023,0000488035,"1,680.00",Revenue,CLAREMONT HOTEL,0
South Ribble Borough Council,http://statistics.data.gov.uk/id/local-authority/30UE,Homelessness,Temporary Accommodation,5311,"Purchase order created so that we can pay The Claremont Hotel in Preston (516 Blackpool Rd, Ashton-on-Ribble, Preston PR2 1HY) fo",21/04/2023,0000488036,"2,250.00",Revenue,CLAREMONT HOTEL,0
South Ribble Borough Council,http://statistics.data.gov.uk/id/local-authority/30UE,Homelessness,Temporary Accommodation,5311,"Purchase order to pay the Claremont Hotel a total of 1,484.00 for overnight accommodation costs for four individuals in the week",21/04/2023,0000488086,"1,484.00",Revenue,CLAREMONT HOTEL,0
South Ribble Borough Council,http://statistics.data.gov.uk/id/local-authority/30UE,Homelessness,Temporary Accommodation,5311,"Purchase order to pay the Claremont Hotel a total of 1,484.00 for overnight accommodation costs for four individuals in the week",21/04/2023,0000488087,"1,484.00",Revenue,CLAREMONT HOTEL,0
South Ribble Borough Council,http://statistics.data.gov.uk/id/local-authority/30UE,Community Development,Professional Fees,4510,"Easter HAF camps: Easter HAF camps 4th, 5th, 11th & 12th April. 50 spaces per day @ 14 per head",19/04/2023,0000487955,"2,800.00",Revenue,Community Network and Outreach,0
South Ribble Borough Council,http://statistics.data.gov.uk/id/local-authority/30UE,Capital,Cap Contract Payment,C230,Jubilee Gardens Fibre Connection Works (West Paddock),12/04/2023,0000486873,"8,483.33",Revenue,Core Integrated Solutions,0
South Ribble Borough Council,http://statistics.data.gov.uk/id/local-authority/30UE,Central Support Services,Miscellaneous Expenses,4851,"To serve and evict travellers on the leisure , centre, Withy grove park,Bamber bridge, , Preston PR5 6YG",19/04/2023,0000487701,"3,750.00",Revenue,Court Enforcement Specialists Ltd,0
South Ribble Borough Council,http://statistics.data.gov.uk/id/local-authority/30UE,Local Tax Collection,Postage General,4291,POSTAGE FOR AUG 2022 TO MARCH 2023,12/04/2023,0000487555,633.97,Revenue,CRITIQOM,0
South Ribble Borough Council,http://statistics.data.gov.uk/id/local-authority/30UE,Local Tax Collection,Postage General,4291,POSTAGE FOR AUG 2022 TO MARCH 2023,19/04/2023,0000487697,590.03,Revenue,CRITIQOM,0
South Ribble Borough Council,http://statistics.data.gov.uk/id/local-authority/30UE,Local Tax Collection,Postage General,4291,POSTAGE FOR AUG 2022 TO MARCH 2023,21/04/2023,0000488025,651.57,Revenue,CRITIQOM,0
South Ribble Borough Council,http://statistics.data.gov.uk/id/local-authority/30UE,Regulatory Services,Other Fees,4520,South Ribble full hackney demand survey 2022,26/04/2023,0000488361,944.00,Revenue,CTS Traffic & Transportation Ltd,0
South Ribble Borough Council,http://statistics.data.gov.uk/id/local-authority/30UE,Capital,Cap Contract Payment,C230,"Leyland Town Deal - RIBA 1-3 Additional Works (Design, Drawings and Meetings associated with LCC Highways)",19/04/2023,0000487748,"7,300.00",Revenue,Curtins Consulting Ltd,0
South Ribble Borough Council,http://statistics.data.gov.uk/id/local-authority/30UE,Short Term Debtors,Amount Paid,0030,Cyclescheme for NAME REDACTED,19/04/2023,0000487334,"1,875.00",Revenue,CYCLESCHEME CO  UK,0
South Ribble Borough Council,http://statistics.data.gov.uk/id/local-authority/30UE,Recreation & Sport,Telephones-Rental,4261,,26/04/2023,0000488188,533.68,Revenue,Daisy Communications LTD,0
South Ribble Borough Council,http://statistics.data.gov.uk/id/local-authority/30UE,Central Support Services,Materials General,4040,1 GEAR SELECTOR PAD VIN REDACTED,21/04/2023,0000487824,"1,135.05",Revenue,DENNIS EAGLE LTD,0
South Ribble Borough Council,http://statistics.data.gov.uk/id/local-authority/30UE,Culture & Heritage,Operational Equip & Tools,4010,"8 x AS12 1200x800 desks � White Top, 8 x WGE10950 - 950w Cable Baskets, 8 x OC97FDA C1+ Task chairs � Black Fabric, 2 x LKS04D28E",19/04/2023,0000486949,"3,571.38",Revenue,Diamond Business Interiors Ltd,0
South Ribble Borough Council,http://statistics.data.gov.uk/id/local-authority/30UE,Central Support Services,Computer Maintenance,4211,1 x Eclipse Testpad Extreme Pro (ECL 195) as per quotation 00001607,05/04/2023,0000485377,"1,295.00",Revenue,Eclipse Automotive Technology Ltd,0
South Ribble Borough Council,http://statistics.data.gov.uk/id/local-authority/30UE,Capital,Cap Contract Payment,C230,,21/04/2023,0000487633,"3,705.46",Revenue,ELECTRICITY NORTH WEST LTD,0
South Ribble Borough Council,http://statistics.data.gov.uk/id/local-authority/30UE,Waste Collection,Waste Permits,5110,permit,21/04/2023,0000487886,"1,230.25",Revenue,ENVIRONMENT AGENCY,0
South Ribble Borough Council,http://statistics.data.gov.uk/id/local-authority/30UE,Elections,Polling Centre Costs,4421,"As per quotation 3/00500253/7090379, , 22 tables for ballot box filling @ Civic Centre, Cost: 1036.58",19/04/2023,0000487713,"1,036.58",Revenue,ev-ent Hire,0
South Ribble Borough Council,http://statistics.data.gov.uk/id/local-authority/30UE,Elections,Postal Voting Costs,4422,"As per quotation 3/00500253/7090379, , 22 tables for postal vote opening @ Civic Centre , Cost: 1036.58",19/04/2023,0000487713,836.58,Revenue,ev-ent Hire,0
South Ribble Borough Council,http://statistics.data.gov.uk/id/local-authority/30UE,Elections,Polling Count Costs,4424,"As per quotation 3/00500260/7090381, , 120 tables and 110 folding chairs for election count",19/04/2023,0000487714,"1,327.10",Revenue,ev-ent Hire,0
South Ribble Borough Council,http://statistics.data.gov.uk/id/local-authority/30UE,Capital,Cap Contract Payment,C230,7 Strada Transfer EU03- Back Office System,26/04/2023,0000487531,"2,066.00",Revenue,Flowbird Smart City UK Ltd,0
South Ribble Borough Council,http://statistics.data.gov.uk/id/local-authority/30UE,Recreation & Sport,Reactive Repair & Maintenance,2020,"Leyland Leisure Centre Structural Inspections & finding reports., Requested by NAME REDACTED",12/04/2023,0000487329,725.00,Revenue,Frederick G. Markland Associates Limited,0
South Ribble Borough Council,http://statistics.data.gov.uk/id/local-authority/30UE,Economic Development,Professional Fees,4510,"Music In The Park , Railway Station advertising poster sites - reference NAME REDACTED, 2x 6 sheet Preston, 1x 6 sheet Wigan, 2x 4 s",19/04/2023,0000487644,622.00,Revenue,Global Media Group Services Ltd,0
South Ribble Borough Council,http://statistics.data.gov.uk/id/local-authority/30UE,Capital,Cap Contract Payment,C230,Leyland Town Deal Project - Procurement Strategy - Stage 2,05/04/2023,0000485900,"4,710.00",Revenue,Gosling Consulting Limited,0
South Ribble Borough Council,http://statistics.data.gov.uk/id/local-authority/30UE,Capital,Cap Professional Fees,C210,Extension of Cost Manager and Employers Agent Services (to 14th April 2023),21/04/2023,0000487381,"1,750.00",Revenue,Gosling Consulting Limited,0
South Ribble Borough Council,http://statistics.data.gov.uk/id/local-authority/30UE,Capital,Consultancy,C259,Access Agreement,19/04/2023,0000485946,"4,000.00",Revenue,GREAT PLACES HOUSING ASSOCIATION,0
South Ribble Borough Council,http://statistics.data.gov.uk/id/local-authority/30UE,Community Development,External Catering Charges,4575,Lunches during the Easter HAF camps 1078 meals in total @ 5 per head,21/04/2023,0000487952,"5,390.00",Revenue,Halls Bakery Limited,0
South Ribble Borough Council,http://statistics.data.gov.uk/id/local-authority/30UE,Central Support Services,Advertising- Recruitm Exp,1500,Advertising for Planning Manager role,21/04/2023,0000487989,"1,355.00",Revenue,HAYMARKET MEDIA GROUP LTD,0
South Ribble Borough Council,http://statistics.data.gov.uk/id/local-authority/30UE,Central Support Services,Miscellaneous Expenses,4851,Advertising for Senior Solicitor in Local Government Lawyers,21/04/2023,0000487923,695.00,Revenue,HB EDITORIAL SERVICES LTD,0
South Ribble Borough Council,http://statistics.data.gov.uk/id/local-authority/30UE,Short Term Creditors,Amount Received,0140,,12/04/2023,0000486002,"7,376.00",Revenue,HM REVENUE & CUSTOMS,0
South Ribble Borough Council,http://statistics.data.gov.uk/id/local-authority/30UE,Short Term Creditors,Amount Received,0140,,12/04/2023,0000487506,534.00,Revenue,HM REVENUE & CUSTOMS,0
South Ribble Borough Council,http://statistics.data.gov.uk/id/local-authority/30UE,Capital,Cap Contract Payment,C230,"SDLT for land purchase, side of Quin St",19/04/2023,0000487762,"22,490.00",Revenue,HM REVENUE & CUSTOMS,0
South Ribble Borough Council,http://statistics.data.gov.uk/id/local-authority/30UE,Central Support Services,Office Requisites,4136,Eros Live upgrade to v23.0.1 half day consultancy at 600,21/04/2023,0000487645,600.00,Revenue,IDOX PLC,0
South Ribble Borough Council,http://statistics.data.gov.uk/id/local-authority/30UE,Waste Collection,Hiring Expenses,3212,"Hire of Luton Box Van with Tail Lift, On hire 20.3.23 for 2 weeks at 274.92 per week",19/04/2023,0000487672,548.05,Revenue,Intack Self Drive Ltd,0
South Ribble Borough Council,http://statistics.data.gov.uk/id/local-authority/30UE,Capital,Cap Contract Payment,C230,"Hawthorn	60/90 @ 0.85 each",05/04/2023,0000487422,544.00,Revenue,J A JONES & SONS,0
South Ribble Borough Council,http://statistics.data.gov.uk/id/local-authority/30UE,Central Support Services,Materials General,4040,"1 x Hanger bracket, 1 x bush, 1 x washer (inside), 1 x dipstick tube VIN REDACTED",26/04/2023,0000488119,"1,297.50",Revenue,JAMES HART (CHORLEY) LTD,0
South Ribble Borough Council,http://statistics.data.gov.uk/id/local-authority/30UE,Capital,Cap Contract Payment,C230,Costs for work on the refurbishment of Worden Hall Central Buildings,19/04/2023,0000486726,"225,220.07",Revenue,John Turner Construction Group Ltd,0
South Ribble Borough Council,http://statistics.data.gov.uk/id/local-authority/30UE,Elections,Polling Centre Costs,4421,3 x York roll containers and delivery,26/04/2023,0000488032,"1,141.40",Revenue,K Hartwall Oy AB,0
South Ribble Borough Council,http://statistics.data.gov.uk/id/local-authority/30UE,Capital,Cap Contract Payment,C230,Leyland Town Deal - Tree Felling,19/04/2023,0000486934,"2,500.00",Revenue,Ken Linford Gardencare Limited,0
South Ribble Borough Council,http://statistics.data.gov.uk/id/local-authority/30UE,Capital,Cap Professional Fees,C210,West Paddock Tree Removals - Leyland,12/04/2023,0000486939,"4,500.00",Revenue,Ken Linford Gardencare Limited,0
South Ribble Borough Council,http://statistics.data.gov.uk/id/local-authority/30UE,Community Development,Professional Fees,4510,"Easter HAF camps 4th, 6th, 11th & 14th April. 40 spaces per day @ 14 per head",21/04/2023,0000487988,"2,240.00",Revenue,KEY UNLOCKING FUTURES LTD,0
South Ribble Borough Council,http://statistics.data.gov.uk/id/local-authority/30UE,Community Development,Professional Fees,4510,"HAF Easter camps: 11th, 12th, 13th & 14th April. 40 spaces per day @ 10 per head",21/04/2023,0000488110,"1,600.00",Revenue,Kick On Football Coaching,0
South Ribble Borough Council,http://statistics.data.gov.uk/id/local-authority/30UE,Central Support Services,Materials General,4040,1100 litres Type 46 Hydraulic Oil @ 1.45 ppl,12/04/2023,0000487553,"1,595.00",Revenue,LANCASHIRE OILS LTD,0
South Ribble Borough Council,http://statistics.data.gov.uk/id/local-authority/30UE,Capital,Cap Contract Payment,C230,"Leyland Town Deal - Quin St - Disconnection of lighting column, removal & when works complete install a new column with a new ele",12/04/2023,0000486840,"1,995.00",Revenue,LANCS COUNTY COUNCIL,0
South Ribble Borough Council,http://statistics.data.gov.uk/id/local-authority/30UE,Central Support Services,Materials General,4040,"SPRING , UBOLTS, , VIN REDACTED",19/04/2023,0000487783,639.11,Revenue,LANCS DAF,0
South Ribble Borough Council,http://statistics.data.gov.uk/id/local-authority/30UE,Central Support Services,Materials General,4040,"VIN REDACTED JFC 19532, Nox sensor, 2x relays",21/04/2023,0000488039,873.46,Revenue,LANCS DAF,0
South Ribble Borough Council,http://statistics.data.gov.uk/id/local-authority/30UE,Central Support Services,Legal,4821,Local Authority Fee 6-10,12/04/2023,0000487705,610.00,Revenue,LAWYERS IN LOCAL GOVERMENT,0
South Ribble Borough Council,http://statistics.data.gov.uk/id/local-authority/30UE,Democratic Represent and  Mgnt,Corp Subs to Professional Bodies,4720,Membership Subscription Renewal for 2023-24,19/04/2023,0000487706,"11,609.08",Revenue,LGA (LOCAL GOVERNMENT ASSOCIATION),0
South Ribble Borough Council,http://statistics.data.gov.uk/id/local-authority/30UE,Economic Development,Professional Fees,4510,"Music In The Park Advertising, Live Magazines 2x half pages, 1x Fylde and Preston, 1x Ribble Valley",05/04/2023,0000487439,604.00,Revenue,Live Magazines Limited,0
South Ribble Borough Council,http://statistics.data.gov.uk/id/local-authority/30UE,Open Spaces,Materials General,4040,20T Soil delivered to Worden Park @ 27.00 per tonne,21/04/2023,0000488103,540.00,Revenue,M C & M A STEWART HAULAGE LTD,0
South Ribble Borough Council,http://statistics.data.gov.uk/id/local-authority/30UE,Open Spaces,Materials General,4040,60T Grade 1 Soil,26/04/2023,0000488294,"1,080.00",Revenue,M C & M A STEWART HAULAGE LTD,0
South Ribble Borough Council,http://statistics.data.gov.uk/id/local-authority/30UE,Corporate Management,Consultancy Fees,4541,4 days consultant review of progress made towards the Community Wealth Building project,19/04/2023,0000486852,"2,000.00",Revenue,Matthew Baqueriza-Jackson LTD,0
South Ribble Borough Council,http://statistics.data.gov.uk/id/local-authority/30UE,Open Spaces,GM Refurbishment,4657,"Transport of 10 loads between Worden Park and Ryden Avenue, Leyland, , Collection and tipping of 7 loads",21/04/2023,0000487785,520.00,Revenue,Michael Alty,0
South Ribble Borough Council,http://statistics.data.gov.uk/id/local-authority/30UE,Open Spaces,GM Refurbishment,4657,"Transport of 10 loads between Worden Park and Ryden Avenue, Leyland, , Collection and tipping of 7 loads",21/04/2023,0000487786,780.00,Revenue,Michael Alty,0
South Ribble Borough Council,http://statistics.data.gov.uk/id/local-authority/30UE,Surplus or Deficit on Trading,Reactive Repair & Maintenance,2020,"ESTIMATE NO. 1226 DATE 16/02/2023 as per NAME REDACTED request , WORDON PARK OLD CAFE, Remove all stone slate/battens Renail all rafters ",19/04/2023,0000487756,"11,500.00",Revenue,Mick Bamber,0
South Ribble Borough Council,http://statistics.data.gov.uk/id/local-authority/30UE,Recreation & Sport,Reactive Repair & Maintenance,2020,"ESTIMATE NO. 1228 DATE 20/02/2023 as per NAME REDACTED request , Bamber Bridge Leisure Centre, Remove Lead Gutter. Apply 3/4 inch sterlin",26/04/2023,0000488128,"5,800.00",Revenue,Mick Bamber,0
South Ribble Borough Council,http://statistics.data.gov.uk/id/local-authority/30UE,Recreation & Sport,Reactive Repair & Maintenance,2020,Penwortham Leisure Centre Repair down pipes Repair to dance studio roof. Erect scaffolding safe access. As per NAME REDACTED reques,26/04/2023,0000488211,"1,200.00",Revenue,Mick Bamber,0
South Ribble Borough Council,http://statistics.data.gov.uk/id/local-authority/30UE,Central Support Services,Kennelling Fees,4521,Provision of stray dog service December 2022,12/04/2023,0000487621,595.33,Revenue,MORNINGSIDE KENNELS,0
South Ribble Borough Council,http://statistics.data.gov.uk/id/local-authority/30UE,Central Support Services,Materials General,4040,9 x Composite Brg Yoke Ram 5012665 - BIN G045,26/04/2023,0000487787,635.20,Revenue,MRD Parts LTD,0
South Ribble Borough Council,http://statistics.data.gov.uk/id/local-authority/30UE,Central Support Services,Materials General,4040,2 x GPM4 Filter Kit 5025256-1 BIN G027,26/04/2023,0000487787,512.69,Revenue,MRD Parts LTD,0
South Ribble Borough Council,http://statistics.data.gov.uk/id/local-authority/30UE,Development Control,Advertising,4841,Publication of planning publicity press notices in the LEP - April 2022 to March 2023,05/04/2023,0000486875,"1,040.04",Revenue,National World Publishing Limited,0
South Ribble Borough Council,http://statistics.data.gov.uk/id/local-authority/30UE,Capital,Capital Grant,C570,DFG WORKS FUNDED BY LANCASHIRE COUNTY COUNCIL AT ADDRESS REDACTED TOTAL FUNDED BY LCC 40000.00,19/04/2023,0000487745,"5,000.00",Revenue,Neil Maitland,0
South Ribble Borough Council,http://statistics.data.gov.uk/id/local-authority/30UE,Open Spaces,Plants Trees & Shrubs,4046,supply a range of plants for Worden Park and Leyland War Memorial as per quotation 29/12/22.,12/04/2023,0000487682,"4,411.90",Revenue,NEWGATE NURSERIES,0
South Ribble Borough Council,http://statistics.data.gov.uk/id/local-authority/30UE,Surplus or Deficit on Trading,Reactive Repair & Maintenance,2020,"Requested by NAME REDACTED  - 4 Bay Trailer Shower including gas bottle at North Lodge, Worden Park.",12/04/2023,0000487558,"1,300.00",Revenue,Northwest Portable Toilet Company Ltd,0
South Ribble Borough Council,http://statistics.data.gov.uk/id/local-authority/30UE,Parking Services,Parking Attendants,4514,"Variable Fee Car Park Enforcement , MARCH 2023 - Variable Recharge Items",19/04/2023,0000487840,"2,042.04",Revenue,NSL LTD,0
South Ribble Borough Council,http://statistics.data.gov.uk/id/local-authority/30UE,Central Support Services,Planned Annual Repair & Maintenance,2021,To provide gritting of areas on plan as per NAME REDACTED dated 12 Dec 2022 until further notice - estimated 20 visits at 135.00 ,19/04/2023,0000487755,675.00,Revenue,Nurture Landscapes Ltd,0
South Ribble Borough Council,http://statistics.data.gov.uk/id/local-authority/30UE,Open Spaces,Plants Trees & Shrubs,4046,43 x Euroflor Rainbow Annuals 1kg 181.70per KG,05/04/2023,0000487409,"7,813.10",Revenue,Origin Amenity Solutions,0
South Ribble Borough Council,http://statistics.data.gov.uk/id/local-authority/30UE,Elections,Polling Centre Costs,4421,5 x V1 Polling Booths plus carriage,19/04/2023,0000487816,"1,820.00",Revenue,PAKFLATT (UK) LTD,0
South Ribble Borough Council,http://statistics.data.gov.uk/id/local-authority/30UE,Central Support Services,Reactive Repair & Maintenance,2020,"Attend Moss Side Depot as per QU 0757 and NAME REDACTED request, remove and refit all toilets for flooring. Remove cubilces flooring due ",19/04/2023,0000487904,"2,920.00",Revenue,PDP PROPERTY SERVICES LTD,0
South Ribble Borough Council,http://statistics.data.gov.uk/id/local-authority/30UE,Surplus or Deficit on Trading,Reactive Repair & Maintenance,2020,"Decoration works to red frog after water damage to Kitchen, Viewing Room, Hall, Office, Toilet - requested by NAME REDACTED",19/04/2023,0000487905,"3,455.00",Revenue,PDP PROPERTY SERVICES LTD,0
South Ribble Borough Council,http://statistics.data.gov.uk/id/local-authority/30UE,Community Development,Professional Fees,4510,Easter HAF camps 3rd April  6th April 30 spaces per day @ 14 per head,26/04/2023,0000488228,"1,680.00",Revenue,Penwortham Boxing Club CIC,0
South Ribble Borough Council,http://statistics.data.gov.uk/id/local-authority/30UE,Recycling,Contract Printing,4127,Provision & Posting of Garden Waste March 2023.,21/04/2023,0000487758,"7,676.58",Revenue,Permiserv Ltd,0
South Ribble Borough Council,http://statistics.data.gov.uk/id/local-authority/30UE,Central Support Services,Technical Support,4246,SharePoint work as detailed in ROM,21/04/2023,0000487647,"1,000.00",Revenue,PHOENIX SOFTWARE LTD,0
South Ribble Borough Council,http://statistics.data.gov.uk/id/local-authority/30UE,Tourism,Planned Annual Repair & Maintenance,2021,Annual Contract for Worden Hall until 31st March 2023 this is to cover invoices that have been received with no PO number on them,19/04/2023,0000487832,"1,212.38",Revenue,PHS GROUP PLC,0
South Ribble Borough Council,http://statistics.data.gov.uk/id/local-authority/30UE,Central Support Services,Materials General,4040,"1,000L Commercial Engine Oil E9 10w/30 - 2.87",26/04/2023,0000488122,"2,898.70",Revenue,PILKINGTON OILS,0
South Ribble Borough Council,http://statistics.data.gov.uk/id/local-authority/30UE,Central Support Services,Materials General,4040,205 litre drum 80/90W gear oil = 2.90 per litre,26/04/2023,0000488123,594.50,Revenue,PILKINGTON OILS,0
South Ribble Borough Council,http://statistics.data.gov.uk/id/local-authority/30UE,Central Support Services,Materials General,4040,"1,000L Hydraulic Oil 46 - 1.53 per litre",26/04/2023,0000488175,"1,245.42",Revenue,PILKINGTON OILS,0
South Ribble Borough Council,http://statistics.data.gov.uk/id/local-authority/30UE,Central Support Services,Agency Staff,1121,Enforcement consultancy services,19/04/2023,0000487752,995.65,Revenue,Planning Control & PACE Solutions,0
South Ribble Borough Council,http://statistics.data.gov.uk/id/local-authority/30UE,Community Development,Core Fund,4861,"8 Unit(s) Complete New systems (brackets and banners). 8 required., Leyland Road. ``Euro Chieften`` bracket specification as befo",19/04/2023,0000485488,"6,767.18",Revenue,Poppy Signs Ltd,0
South Ribble Borough Council,http://statistics.data.gov.uk/id/local-authority/30UE,Capital,Cap Contract Payment,C230,Bamber bridge Sports Hub signage as per NAME REDACTED request,12/04/2023,0000485842,"5,548.57",Revenue,Poppy Signs Ltd,0
South Ribble Borough Council,http://statistics.data.gov.uk/id/local-authority/30UE,Surplus or Deficit on Trading,Reactive Repair & Maintenance,2020,Description - Erect roof edge protection with independent access scaffold to Worden Park Hall - old cafe area as per NAME REDACTED reques,19/04/2023,0000487754,"1,500.00",Revenue,Preston Scaffolding NW Ltd.,0
South Ribble Borough Council,http://statistics.data.gov.uk/id/local-authority/30UE,Surplus or Deficit on Trading,Reactive Repair & Maintenance,2020,Please attend Worden Park and erect 2 x 2.4 m x 3 lifts for Red Frog Photography Gardeners Cottage as per NAME REDACTED request as per 02,19/04/2023,0000487792,500.00,Revenue,Preston Scaffolding NW Ltd.,0
South Ribble Borough Council,http://statistics.data.gov.uk/id/local-authority/30UE,Elections,Contract Printing,4127,"2023 PI Refresh exercise (order 10124), Mailing 1 (January) � initial letter",12/04/2023,0000487561,"1,526.20",Revenue,PRINT IMAGE NETWORK LTD,0
South Ribble Borough Council,http://statistics.data.gov.uk/id/local-authority/30UE,Elections,Contract Printing,4127,"2023 PI Refresh exercise (order 10124), Mailing 2 (February) � reminder letter",12/04/2023,0000487561,516.56,Revenue,PRINT IMAGE NETWORK LTD,0
South Ribble Borough Council,http://statistics.data.gov.uk/id/local-authority/30UE,Elections,Polling Card Costs,4423,"Ack ref:10279 Poll letters & poll cards (approx. 92,000)",19/04/2023,0000487817,"14,482.62",Revenue,PRINT IMAGE NETWORK LTD,0
South Ribble Borough Council,http://statistics.data.gov.uk/id/local-authority/30UE,Central Support Services,Consultancy Fees,4541,Professional services to support the implementation and roll out of shared virtual desktop across South Ribble and Chorley Counci,19/04/2023,0000485966,"19,125.00",Revenue,Proact IT UK Limited,0
South Ribble Borough Council,http://statistics.data.gov.uk/id/local-authority/30UE,Central Support Services,Consultancy Fees,4541,Professional services to support the implementation of a single Active Directory (AD) forest across South Ribble and Chorley Coun,05/04/2023,0000487417,"6,750.00",Revenue,Proact IT UK Limited,0
South Ribble Borough Council,http://statistics.data.gov.uk/id/local-authority/30UE,Surplus or Deficit on Trading,Reactive Repair & Maintenance,2020,"UPVC windows for Units on Boxer Place as agreed with NAME REDACTED., , �	To Carefully take out existing windows and remove from s",19/04/2023,0000487538,"3,500.00",Revenue,PSR & Sons Joiners & Building Contractors,0
South Ribble Borough Council,http://statistics.data.gov.uk/id/local-authority/30UE,Surplus or Deficit on Trading,Reactive Repair & Maintenance,2020,To fit a fire door at ADDRESS REDACTED Building works: To carefully cut out Existing Brick and bloc,26/04/2023,0000488178,"1,210.00",Revenue,PSR & Sons Joiners & Building Contractors,0
South Ribble Borough Council,http://statistics.data.gov.uk/id/local-authority/30UE,Homelessness,Temporary Accommodation,5311,"Purchase order for Purple Roomz � all of our homeless placements during the calendar month of March 2023. TOTAL SPEND = 24,085.7",05/04/2023,0000487609,"24,085.75",Revenue,Purpleroomz,0
South Ribble Borough Council,http://statistics.data.gov.uk/id/local-authority/30UE,Homelessness,Temporary Accommodation,5311,"Purple Roomz � additional March invoice for March 2023 hotel homeless placements � total spend is 1,279.25......, , NAME REDACTED � double ",05/04/2023,0000487611,"1,279.25",Revenue,Purpleroomz,0
South Ribble Borough Council,http://statistics.data.gov.uk/id/local-authority/30UE,Central Support Services,Computer Maintenance,4211,System rental and communications charge for 60 vehicles for 3 months 1.4.23 - 30.6.23,21/04/2023,0000488100,"2,070.00",Revenue,Quartix,0
South Ribble Borough Council,http://statistics.data.gov.uk/id/local-authority/30UE,Community Development,Core Fund,4861,Supply of Thrown Line for Howick Cross Lane site. 690.00Board Design Fee. 25Carriage. 65Subtotal - 780VAT - 156Invoice Total,19/04/2023,0000487562,780.00,Revenue,Reach And Rescue Ltd,0
South Ribble Borough Council,http://statistics.data.gov.uk/id/local-authority/30UE,Open Spaces,GM Refurbishment,4657,"Various stone copings, plinths and blocks for Worden Park balustrade wall",05/04/2023,0000487567,"5,208.00",Revenue,RECCLESIA LTD,0
South Ribble Borough Council,http://statistics.data.gov.uk/id/local-authority/30UE,Central Support Services,Materials General,4040,Imprest Stock purchased at 25% discount off full price as agrred beetween NAME REDACTED (Ref SI0100931),12/04/2023,0000487667,"4,144.62",Revenue,Refuse Vehicle Parts,0
South Ribble Borough Council,http://statistics.data.gov.uk/id/local-authority/30UE,Central Support Services,Photocopier Lease Rental,4036,1/11/22 to 31/1/23,21/04/2023,0000487769,"3,886.67",Revenue,RICOH (UK) LTD,0
South Ribble Borough Council,http://statistics.data.gov.uk/id/local-authority/30UE,Capital,Cap Contract Payment,C230,"Valuation for Balfour Court, Northcote Street, Leyland",21/04/2023,0000487539,"1,400.00",Revenue,ROBERT PINKUS (MANAGEMENT SERVICES) LTD,0
South Ribble Borough Council,http://statistics.data.gov.uk/id/local-authority/30UE,Open Spaces,External Contractors Charges,4570,Highway clearance/residential third party nuisance abatement and ash dieback works at Ulnes Walton Lane via NAME REDACTED,05/04/2023,0000487415,"6,350.00",Revenue,RUSS ASPINALL T/A BEARDWOOD TREE SERVICE,0
South Ribble Borough Council,http://statistics.data.gov.uk/id/local-authority/30UE,Capital,Consultancy,C259,"RIBA Stage 4 Extension PCSA and QS Consultancy, (Dec 2022 & Jan 2023) - Jubilee Gardens",12/04/2023,0000487596,"1,390.00",Revenue,SDA Consulting LLP,0
South Ribble Borough Council,http://statistics.data.gov.uk/id/local-authority/30UE,Capital,Consultancy,C259,"RIBA Stage 4 Extension PCSA and QS Consultancy, (Dec 2022 & Jan 2023) - Jubilee Gardens",12/04/2023,0000487613,"3,921.00",Revenue,SDA Consulting LLP,0
South Ribble Borough Council,http://statistics.data.gov.uk/id/local-authority/30UE,Capital,Consultancy,C259,"RIBA Stage 4 Extension PCSA and QS Consultancy, (Dec 2022 & Jan 2023) - Jubilee Gardens",12/04/2023,0000487614,"3,921.00",Revenue,SDA Consulting LLP,0
South Ribble Borough Council,http://statistics.data.gov.uk/id/local-authority/30UE,Capital,Consultancy,C259,"RIBA Stage 4 Extension PCSA and QS Consultancy, (Dec 2022 & Jan 2023) - Jubilee Gardens",12/04/2023,0000487615,"1,390.00",Revenue,SDA Consulting LLP,0
South Ribble Borough Council,http://statistics.data.gov.uk/id/local-authority/30UE,Central Support Services,Agency Staff,1121,Payment for Locum Solicitor NAME REDACTED,12/04/2023,0000487514,"1,611.60",Revenue,SELLICK PARTNERSHIP LTD,0
South Ribble Borough Council,http://statistics.data.gov.uk/id/local-authority/30UE,Central Support Services,Agency Staff,1121,Payment for Locum Solicitor NAME REDACTED,12/04/2023,0000487675,"2,686.00",Revenue,SELLICK PARTNERSHIP LTD,0
South Ribble Borough Council,http://statistics.data.gov.uk/id/local-authority/30UE,Central Support Services,Legal,4821,Sellick Partnership Ltd -NAME REDACTED fees,19/04/2023,0000487966,"2,148.80",Revenue,SELLICK PARTNERSHIP LTD,0
South Ribble Borough Council,http://statistics.data.gov.uk/id/local-authority/30UE,Central Support Services,Legal,4821,Sellick Partnership Ltd -NAME REDACTED fees,19/04/2023,0000488008,"2,518.13",Revenue,SELLICK PARTNERSHIP LTD,0
South Ribble Borough Council,http://statistics.data.gov.uk/id/local-authority/30UE,Central Support Services,Legal,4821,Sellick Partnership Ltd -NAME REDACTED fees,19/04/2023,0000488009,503.63,Revenue,SELLICK PARTNERSHIP LTD,0
South Ribble Borough Council,http://statistics.data.gov.uk/id/local-authority/30UE,Central Support Services,Legal,4821,Sellick Partnership Ltd -NAME REDACTED fees,19/04/2023,0000488010,"2,148.80",Revenue,SELLICK PARTNERSHIP LTD,0
South Ribble Borough Council,http://statistics.data.gov.uk/id/local-authority/30UE,Central Support Services,Legal,4821,Sellick Partnership Ltd -NAME REDACTED fees,19/04/2023,0000488011,"2,518.13",Revenue,SELLICK PARTNERSHIP LTD,0
South Ribble Borough Council,http://statistics.data.gov.uk/id/local-authority/30UE,Central Support Services,Legal,4821,Sellick Partnership Ltd -NAME REDACTED fees,19/04/2023,0000488012,"1,074.40",Revenue,SELLICK PARTNERSHIP LTD,0
South Ribble Borough Council,http://statistics.data.gov.uk/id/local-authority/30UE,Elections,Polling Centre Costs,4421,"Additional items as per quotation 0000000081 dated, , Please confirm the date of delivery in advance with NAME REDACTED",12/04/2023,0000487383,"1,252.50",Revenue,SHAW & SONS LTD,0
South Ribble Borough Council,http://statistics.data.gov.uk/id/local-authority/30UE,Elections,Polling Centre Costs,4421,"Additional items as per quotation 0000000081 dated, , Please confirm the date of delivery in advance with NAME REDACTED",21/04/2023,0000487540,"5,526.19",Revenue,SHAW & SONS LTD,0
South Ribble Borough Council,http://statistics.data.gov.uk/id/local-authority/30UE,Elections,Polling Centre Costs,4421,"85 x LGE PO Sundry Packs , 40 x LGE to Parish/Town Election conversion packs",21/04/2023,0000487541,"1,767.05",Revenue,SHAW & SONS LTD,0
South Ribble Borough Council,http://statistics.data.gov.uk/id/local-authority/30UE,Development Control,Operational Equip & Tools,4010,Yearly lease and asset protection of HP XL-3600 Wide Format Printer plotter,05/04/2023,0000487012,"1,015.29",Revenue,Siemens Financial Services Limited,0
South Ribble Borough Council,http://statistics.data.gov.uk/id/local-authority/30UE,Capital,Misc Capital Payments,C234,Requested by NAME REDACTED - To supply and install 2nr 100 x 100mm fence posts. Remove 1pair defective doors and frame and,05/04/2023,0000487518,"2,243.16",Revenue,Singleton & Smart Ltd,0
South Ribble Borough Council,http://statistics.data.gov.uk/id/local-authority/30UE,Capital,Misc Capital Payments,C234,Request raised by NAME REDACTED,19/04/2023,0000487899,"1,382.70",Revenue,Singleton & Smart Ltd,0
South Ribble Borough Council,http://statistics.data.gov.uk/id/local-authority/30UE,Open Spaces,Materials General,4040,"6L of Icade at 46.20 per L (277.20), 6 x 5L of MMC Pro algaecide at 23.15 per 5L (138.90), 10 x Mentor at 46.85 per 5L (468.50",12/04/2023,0000487648,884.60,Revenue,Spunhill Limited,0
South Ribble Borough Council,http://statistics.data.gov.uk/id/local-authority/30UE,Service Management & Support,Diesel Fuel,3132,"17000 Ltrs Diesel @ 116.36ppl into the , feeder tank at ADDRESS REDACTED key for cabinet is available from the , ",21/04/2023,0000487795,"19,855.67",Revenue,Standard Fuel Oils LtdMain,0
South Ribble Borough Council,http://statistics.data.gov.uk/id/local-authority/30UE,Capital,Capital Grant,C570,"DFG WORK TO SUPPLY AND INSTALL A STAIRLIFT AT ADDRESS REDACTED AS PER QUOTE SUPPLIED OF 3244, CLIENT CONTRIBUTION ",19/04/2023,0000487744,"3,026.62",Revenue,Stannah Lift Services Ltd,0
South Ribble Borough Council,http://statistics.data.gov.uk/id/local-authority/30UE,Capital,Capital Grant,C570,"DFG WORK TO SUPPLY AND INSTALL A STAIRLIFT AT ADDRESS REDACTED AS PER QUOTE SUPPLIED OF 6207.00, TOTAL COS",21/04/2023,0000488085,"6,081.00",Revenue,Stannah Lift Services Ltd,0
South Ribble Borough Council,http://statistics.data.gov.uk/id/local-authority/30UE,Capital,Cap Vehicles,C440,"30x1100ltr Galvanised container, coated Grey, Black trade lid, Logo, Standard lock as per quote 996.",19/04/2023,0000487585,"9,729.00",Revenue,Storm Environmental Limited,0
South Ribble Borough Council,http://statistics.data.gov.uk/id/local-authority/30UE,Community Development,External Catering Charges,4575,Lunches during Easter HAF camps 1000 meals in total @ 5 per head,19/04/2023,0000487932,"5,000.00",Revenue,Style Catering,0
South Ribble Borough Council,http://statistics.data.gov.uk/id/local-authority/30UE,Central Support Services,Other Fees,4520,FEES FOR 2023/24,21/04/2023,0000488029,"1,700.00",Revenue,TAMESIDE METROPOLITAN BOROUGH COUNCIL,0
South Ribble Borough Council,http://statistics.data.gov.uk/id/local-authority/30UE,Democratic Represent and  Mgnt,External Catering Charges,4575,"Date Saturday 19th November, Menu and costs per head, Bees Hot Pot, � Traditional Lamb x 155, � Root Vegetable Hot Pot x 12, � Ru",26/04/2023,0000488215,"1,127.25",Revenue,The Bees Country Kitchen,0
South Ribble Borough Council,http://statistics.data.gov.uk/id/local-authority/30UE,Central Support Services,External Contractors Charges,4570,TR247,05/04/2023,0000487269,698.18,Revenue,Tomlinson Road Tyres,0
South Ribble Borough Council,http://statistics.data.gov.uk/id/local-authority/30UE,Open Spaces,Electricity,2303,Garage Hurst Grange,19/04/2023,0000487779,611.10,Revenue,Total Gas & power Ltd,0
South Ribble Borough Council,http://statistics.data.gov.uk/id/local-authority/30UE,Central Support Services,Electricity,2303,Garage Hurst Grange,19/04/2023,0000487791,879.78,Revenue,Total Gas & power Ltd,0
South Ribble Borough Council,http://statistics.data.gov.uk/id/local-authority/30UE,Central Support Services,Gas,2304,Civic Ctr,19/04/2023,0000487812,"2,859.76",Revenue,Total Gas & power Ltd,0
South Ribble Borough Council,http://statistics.data.gov.uk/id/local-authority/30UE,Central Support Services,Electricity,2303,Moss side,19/04/2023,0000487865,"3,811.87",Revenue,Total Gas & power Ltd,0
South Ribble Borough Council,http://statistics.data.gov.uk/id/local-authority/30UE,Tourism,Electricity,2303,Art and craft worden park,19/04/2023,0000487866,"2,743.02",Revenue,Total Gas & power Ltd,0
South Ribble Borough Council,http://statistics.data.gov.uk/id/local-authority/30UE,Central Support Services,Electricity,2303,Moss side,19/04/2023,0000487867,"3,017.79",Revenue,Total Gas & power Ltd,0
South Ribble Borough Council,http://statistics.data.gov.uk/id/local-authority/30UE,Housing Advice,Contributions to Other Bodies,4730,"AFFORDABLE WARMTH FUNDING FOR DOOR AND WINDOW REPLACEMENT AT ADDRESS REDACTED , AS PER QUOTE SUPPLED OF 3408.20( IN",21/04/2023,0000488079,"2,840.17",Revenue,TRADE WINDOWS & CONSERVATORIES,0
South Ribble Borough Council,http://statistics.data.gov.uk/id/local-authority/30UE,Housing Advice,Contributions to Other Bodies,4730,"AFFORDABLE WARMTH FUNDING FOR DOOR AND WINDOW REPLACEMENT AT ADDRESS REDACTED , AS PER QUOTE SUPPLED OF 905.00 ( INC VAT)",21/04/2023,0000488081,754.17,Revenue,TRADE WINDOWS & CONSERVATORIES,0
South Ribble Borough Council,http://statistics.data.gov.uk/id/local-authority/30UE,Central Support Services,External Contractors Charges,4570,Truck Tyre Maintenance - March 2023,21/04/2023,0000488037,"3,599.01",Revenue,Tructyre Fleet Management Ltd,0
South Ribble Borough Council,http://statistics.data.gov.uk/id/local-authority/30UE,Open Spaces,Materials General,4040,"Removal of 1 x ash tree rear of ADDRESS REDACTED  , Ash Dieback",19/04/2023,0000487710,800.00,Revenue,Trunks Tree Care Ltd,0
South Ribble Borough Council,http://statistics.data.gov.uk/id/local-authority/30UE,Elections,Electoral Administration Act,4970,Annual service of envelopener and folding machine (Invoice 6210),19/04/2023,0000487814,"1,307.78",Revenue,Twofold Ltd,0
South Ribble Borough Council,http://statistics.data.gov.uk/id/local-authority/30UE,Central Support Services,UK Healthcare,1710,01 Apr 23,19/04/2023,0000487694,"1,702.00",Revenue,UK healthcare (BDHSC),0
South Ribble Borough Council,http://statistics.data.gov.uk/id/local-authority/30UE,Economic Development,Advertising,4841,Monthly management fee for social media and email campaigns for website November to May,19/04/2023,0000487680,950.00,Revenue,UK Media Events Ltd,0
South Ribble Borough Council,http://statistics.data.gov.uk/id/local-authority/30UE,Economic Development,Advertising,4841,Paid marketing adverts for MITP 23,19/04/2023,0000487681,515.44,Revenue,UK Media Events Ltd,0
South Ribble Borough Council,http://statistics.data.gov.uk/id/local-authority/30UE,Economic Development,Professional Fees,4510,"NAME REDACTED band set at Music In The Park , 2023, Performance Fee Only, SQ8488, , Balance",19/04/2023,0000487891,"1,250.00",Revenue,UK Media Events Ltd,0
South Ribble Borough Council,http://statistics.data.gov.uk/id/local-authority/30UE,Economic Development,Professional Fees,4510,"NAME REDACTED set at Music In The , Park 2023, Performance Fee Only, SQ8489, , Balance",19/04/2023,0000487892,"3,500.00",Revenue,UK Media Events Ltd,0
South Ribble Borough Council,http://statistics.data.gov.uk/id/local-authority/30UE,Economic Development,Professional Fees,4510,"NAME REDACTED Full Band set at Music In The , Park 2023, Performance Fee Only, SQ8491, , Balance",19/04/2023,0000487893,"4,250.00",Revenue,UK Media Events Ltd,0
South Ribble Borough Council,http://statistics.data.gov.uk/id/local-authority/30UE,Economic Development,Professional Fees,4510,"NAME REDACTED, playback set at Music In The Park, 2023, Performance Fee On",19/04/2023,0000487894,"5,000.00",Revenue,UK Media Events Ltd,0
South Ribble Borough Council,http://statistics.data.gov.uk/id/local-authority/30UE,Economic Development,Professional Fees,4510,"NAME REDACTED Full Band at Music In The , Park 2023, Performance Fee Only, SQ8493, , Balance",19/04/2023,0000487895,"13,500.00",Revenue,UK Media Events Ltd,0
South Ribble Borough Council,http://statistics.data.gov.uk/id/local-authority/30UE,Economic Development,Professional Fees,4510,"NAME REDACTED Full Band at Music In The Park 2023, Performance Fee Only, SQ8497, , Balance",19/04/2023,0000487896,"21,250.00",Revenue,UK Media Events Ltd,0
South Ribble Borough Council,http://statistics.data.gov.uk/id/local-authority/30UE,Economic Development,Professional Fees,4510,"NAME REDACTED DJ Set at Music In , The Park 2023, Performance Fee Only, SQ8492, , Balance",19/04/2023,0000487897,"2,500.00",Revenue,UK Media Events Ltd,0
South Ribble Borough Council,http://statistics.data.gov.uk/id/local-authority/30UE,Economic Development,Professional Fees,4510,"NAME REDACTED, SQ8543",19/04/2023,0000487901,"1,250.00",Revenue,UK Media Events Ltd,0
South Ribble Borough Council,http://statistics.data.gov.uk/id/local-authority/30UE,Economic Development,Professional Fees,4510,"NAME REDACTED Full Band at Music In , The Park 2023, Performance Fee Only, SQ8494, , Balance",19/04/2023,0000487903,"8,250.00",Revenue,UK Media Events Ltd,0
South Ribble Borough Council,http://statistics.data.gov.uk/id/local-authority/30UE,Economic Development,Public Relations Strategy,4848,Phase 1 Comms Team work,19/04/2023,0000487637,"7,650.00",Revenue,VIVA PR Limited,0
South Ribble Borough Council,http://statistics.data.gov.uk/id/local-authority/30UE,Central Support Services,Agency Staff,1121,Fees for NAME REDACTED,19/04/2023,0000485609,"4,000.00",Revenue,Vivid Resourcing,0
South Ribble Borough Council,http://statistics.data.gov.uk/id/local-authority/30UE,Central Support Services,Agency Staff,1121,Fees for NAME REDACTED,19/04/2023,0000485778,"2,400.00",Revenue,Vivid Resourcing,0
South Ribble Borough Council,http://statistics.data.gov.uk/id/local-authority/30UE,Central Support Services,Agency Staff,1121,Fees for NAME REDACTED,19/04/2023,0000486713,"2,800.00",Revenue,Vivid Resourcing,0
South Ribble Borough Council,http://statistics.data.gov.uk/id/local-authority/30UE,Corporate Management,Agency Staff,1121,Fees for NAME REDACTED,05/04/2023,0000487284,"2,055.00",Revenue,Vivid Resourcing,0
South Ribble Borough Council,http://statistics.data.gov.uk/id/local-authority/30UE,Corporate Management,Agency Staff,1121,Fees for NAME REDACTED,19/04/2023,0000487604,"1,485.00",Revenue,Vivid Resourcing,0
South Ribble Borough Council,http://statistics.data.gov.uk/id/local-authority/30UE,Central Support Services,Agency Staff,1121,Consultant planning officer NAME REDACTED,19/04/2023,0000487810,"1,955.63",Revenue,Vivid Resourcing,0
South Ribble Borough Council,http://statistics.data.gov.uk/id/local-authority/30UE,Central Support Services,Agency Staff,1121,Consultant planning officer NAME REDACTED,19/04/2023,0000487835,"1,233.75",Revenue,Vivid Resourcing,0
South Ribble Borough Council,http://statistics.data.gov.uk/id/local-authority/30UE,Central Support Services,Agency Staff,1121,Consultant planning officer NAME REDACTED,19/04/2023,0000487888,"2,113.13",Revenue,Vivid Resourcing,0
South Ribble Borough Council,http://statistics.data.gov.uk/id/local-authority/30UE,Central Support Services,Agency Staff,1121,Consultant planning officer NAME REDACTED,26/04/2023,0000487939,"1,640.63",Revenue,Vivid Resourcing,0
South Ribble Borough Council,http://statistics.data.gov.uk/id/local-authority/30UE,Central Support Services,Agency Staff,1121,Consultant planning officer NAME REDACTED,19/04/2023,0000487940,"1,981.88",Revenue,Vivid Resourcing,0
South Ribble Borough Council,http://statistics.data.gov.uk/id/local-authority/30UE,Central Support Services,Agency Staff,1121,Consultant planning officer NAME REDACTED,19/04/2023,0000487941,"1,942.50",Revenue,Vivid Resourcing,0
South Ribble Borough Council,http://statistics.data.gov.uk/id/local-authority/30UE,Central Support Services,Agency Staff,1121,Consultant planning officer NAME REDACTED,19/04/2023,0000487942,"1,942.50",Revenue,Vivid Resourcing,0
South Ribble Borough Council,http://statistics.data.gov.uk/id/local-authority/30UE,Central Support Services,Government Connect,4212,Civic to Moss Side Link,26/04/2023,0000488186,"2,404.20",Revenue,VODAFONE RE:CABLE & WIRELESS UK,0
South Ribble Borough Council,http://statistics.data.gov.uk/id/local-authority/30UE,Open Spaces,Water Charges(Metered),2511,09 mar 23 - 09 apr 23,19/04/2023,0000487863,"1,215.70",Revenue,WaterPlus 4191231371 Worden Park,0
South Ribble Borough Council,http://statistics.data.gov.uk/id/local-authority/30UE,Open Spaces,GM Refurbishment,4657,"Tree Works, Worden Park, Leyland",21/04/2023,0000487898,"3,985.00",Revenue,WESTFIELD TREE SERVICES LTD,0
South Ribble Borough Council,http://statistics.data.gov.uk/id/local-authority/30UE,Central Support Services,Franked Post,4292,Ongoing post costs,21/04/2023,0000487692,762.94,Revenue,WHISTL  UK LTD,0
South Ribble Borough Council,http://statistics.data.gov.uk/id/local-authority/30UE,Open Spaces,GM Refurbishment,4657,"As per quotation ref. 2210272 for Gemini Surf fencing (max height 1.2m) for Worden Park Formal Gardens (3557.80), Hutton Playgro",19/04/2023,0000487902,"3,974.50",Revenue,ZAUN LIMITED,0
South Ribble Borough Council,http://statistics.data.gov.uk/id/local-authority/30UE,Open Spaces,GM Refurbishment,4657,"As per quotation ref. 2210272 for Gemini Surf fencing (max height 1.2m) for Worden Park Formal Gardens (3557.80), Hutton Playgro",19/04/2023,0000487925,"6,074.95",Revenue,ZAUN LIMITED,0
South Ribble Borough Council,http://statistics.data.gov.uk/id/local-authority/30UE,Open Spaces,GM Refurbishment,4657,"As per quotation ref. 2210272 for Gemini Surf fencing (max height 1.2m) for Worden Park Formal Gardens (3557.80), Hutton Playgro",19/04/2023,0000487926,"9,453.00",Revenue,ZAUN LIMITED,0
South Ribble Borough Council,http://statistics.data.gov.uk/id/local-authority/30UE,Open Spaces,GM Refurbishment,4657,"As per quotation ref. 2210272 for Gemini Surf fencing (max height 1.2m) for Worden Park Formal Gardens (3557.80), Hutton Playgro",19/04/2023,0000487927,"3,857.80",Revenue,ZAUN LIMITED,0
